Workbook

Sheet 1-MPN
U2: CÓDIGO EM VBA PRA DESPROTEGER QUALQUER PLANILHA
B7: AUXÍLIO À PESQUISA - REGULAR
B9: 1- MATERIAL PERMANENTE NACIONAL
B11: NOME DO INTERESSADO:
B13: PROCESSO: | M13: Chamada FAPESP-FCT 2017
B15: TOTAL: | D15: =IF(SUM(N19:N63,N70:N116)=0,"",SUM(N19:N63,N70:N116)) -> 
B17: item | C17: quant. | D17: descrição (somente 1 linha para cada item) | L17: referência do orçamento | M17: preço unitário | N17: custo do item | O17: FAPESP | R17: DOCUMENTAÇÃO | AF17: Bolsas regulares FAPESP | AG17: a partir de 1º/4/2011
AF18: Iniciação Científica/Tecnológica (IC) | AG18: 502.8
N19: =IF(C19=0,"",C19*M19) ->  | R19: INÍCIO - FORMATAÇÃO CONDICIONAL. | AF19: Mestrado 1 (MS 1) e Doutorado Direto 1 (DD 1) | AG19: 1477.2
R20: AS CÉLULAS COM FUNDO CINZA CONTEM FORMULAS (ESTÃO PROTEGIDAS). AS COM FUNDO AMARELO SÃO DESPROTEGIDAS | AF20: Mestrado 2 (MS 2) e Doutorado Direto 2 (DD 2) | AG20: 1568.4
R21: AS CORES SÃO DEFINIDAS POR FORMATAÇÃO CONDICIONAL | AF21: Doutorado 1 (DR 1) e Doutorado Direto 3 (DD 3) | AG21: 2177.7
AF22: Doutorado 2 (DR 2) e Doutorado Direto 4 (DD 4) | AG22: 2695.2
R23: CONTÉM FÓRMULAS DE TOTALIZAÇÃO | AF23: Pós-Doutorado (PD-BR) | AG23: 5333.4
AF24: Capacitação de recursos humanos de apoio à pesquisa
R25: IMAGENS NA PLANILHA | AF25: Treinamento Técnico 1 (TT 1) | AG25: 317.4
R26: A IMAGEM PARA IR À INSTRUÇÃO PARA PREENCHIMENTO TEM LINK PARA A LINHA 184 | AF26: Treinamento Técnico 2 (TT 2) | AG26: 634.8
R27: SOMENTE A IMAGEM DE 50 ANOS DA FAPESP SERÁ IMPRESSA, AS DEMAIS SÃO INFORMATIVAS | AF27: Treinamento Técnico 3 (TT 3) | AG27: 888.3
AF28: Treinamento Técnico 4 (TT 4) | AG28: 2246.1
R29: COMUNICAÇAO ENTRE AS PLANILHAS | AF29: Treinamento Técnico 4A (TT 4A) | AG29: 3679.8
R30: A ÚNICA PLANILHA QUE SE COMUNICA COM TODAS AS OUTRAS É A CONSOLIDADA, O MÊS DEVE SER INSERIDO SOMENTE EM 1-MPN | AF30: Treinamento Técnico 5 (TT 5) | AG30: 5333.4
R32: INFORMAÇÕES GERAIS
R33: AS PLANILHAS FORAM VERTICALIZADAS ENTRE MAIO E JUNHO DE 2010
R34: NAS PLANILHAS "NACIONAIS", AS DUAS PÁGINAS TEM 47 LINHAS
R35: NAS PLANILAS "INTERNACIONAIS", A PRIMEIRA PÁGINA TEM 40 LINHAS E A SEGUNDA 47.
R36: AS LINHAS DE TODAS AS PLANILHAS TEM ALTURA DE "23,25".
R37: ELAS FORAM FORMATADAS PRA APARECER INTEGRALMENTE NA TELA COM ZOOM DE 100%
R39: CONFIGURAÇÃO DE MARGEM
R40: 1
R41: 1,9 0,7
R42: 1
R43: ALINHAR - HORIZONTAL E VERTICAL
R45: CLIQUE AQUI E SELECIONE A MODALIDADE DO AUXÍLIO SOLICITADO
Q46: 46 | R46: AUXÍLIO À PESQUISA - PROJETO TEMÁTICO
Q47: 47 | R47: AUXÍLIO À PESQUISA - JOVENS PESQUISADORES
Q48: 48 | R48: AUXÍLIO À PESQUISA - ENSINO PÚBLICO
Q49: 49 | R49: AUXÍLIO À PESQUISA - POLÍTICAS PÚBLICAS
Q50: 50 | R50: AUXÍLIO À PESQUISA - REGULAR
B65: - JUSTIFIQUE EM ANEXO A UTILIDADE DE CADA MATERIAL SOLICITADO PARA O DESENVOLVIMENTO DO PROJETO DE PESQUISA PROPOSTO.
B66: FAPESP, MARÇO DE 2017 | O66: 1
B67: MATERIAL PERMANENTE NACIONAL | AG67: Valores vigentes até 31/3/2011 | AH67: Valores vigentes a partir de 1º/4/2011
B68: item | C68: quant. | D68: descrição (somente 1 linha para cada item) | L68: referência do orçamento | M68: preço unitário | N68: custo do item | O68: FAPESP
AG69: 474 | AH69: 502.8
N70: =IF(C70=0,"",C70*M70) ->  | AG70: 1392.9 | AH70: 1477.2
AG71: 1478.7 | AH71: 1568.4
AG72: 2053.2 | AH72: 2177.7
AG73: 2541.3 | AH73: 2695.2
AG74: 5028.9 | AH74: 5333.4
AG76: 299.1 | AH76: 317.4
AG77: 598.5 | AH77: 634.8
AG78: 837.6 | AH78: 888.3
AG79: 2117.7 | AH79: 2246.1
AG80: 3469.8 | AH80: 3679.8
AG81: 5028.9 | AH81: 5333.4
AG82: 478.5 | AH82: 507.6
AG83: 717.9 | AH83: 761.4
AG84: US$ 1.200,00 | AH84: US$ 1.200,00
AG86: 5714.4 | AH86: 6060.3
AG88: 215.4 | AH88: 228.6
AG89: 430.8 | AH89: 456.9
AG90: 646.2 | AH90: 685.5
AG91: 861.3 | AH91: 913.5
AG92: 1077 | AH92: 1142.4
AG93: 1722.9 | AH93: 1827.3
AG95: 2760.9 | AH95: 2928
AG96: 4085.7 | AH96: 4332.9
AG97: 5714.4 | AH97: 6060.3
AG99: 474 | AH99: 502.8
AG100: 1392.9 | AH100: 1477.2
AG101: 2053.2 | AH101: 2177.7
AG102: 5028 | AH102: 5333.4
B118: - JUSTIFIQUE EM ANEXO A UTILIDADE DE CADA MATERIAL SOLICITADO PARA O DESENVOLVIMENTO DO PROJETO DE PESQUISA PROPOSTO.
B119: =B66 -> FAPESP, MARÇO DE 2017 | O119: 2
B164: PARA IMPRIMIR A INSTRUÇÃO ABAIXO, SELECIONE A ÁREA A SER IMPRESSA
B165: DIGITE "CTRL" P, E DEPOIS CLIQUE EM SELEÇÃO.
B168: INSTRUÇÕES PARA PREENCHIMENTO – LEIA ATENTAMENTE AS INSTRUÇÕES ABAIXO.
B169: MATERIAL PERMANENTE NACIONAL (MPN)
B171: NÃO SERÃO ACEITOS FORMULÁRIOS PREENCHIDOS EM DESACORDO COM ESTA INSTRUÇÃO
B173: - Não incluir aquisição de publicações, materiais administrativos (móveis, etc.). O Auxílio destina-se exclusivamente a materiais de pesquisa.
B174: - Devem ser incluídos neste formulário, todos os materiais permanentes que se pretendam adquirir no Brasil, independente de serem eles de fabricação estrangeira ou nacional.
B175: - Coluna (item) - cada material solicitado deve ser numerado seqüencialmente. Considere um item para cada material (equipamento e componentes) e um sub-item para cada
B176: um dos seus acessórios, deixando claro quais são os acessórios correspondentes a um determinado item, com letras seqüenciais. (Ver exemplo abaixo).
B177: - Coluna (quant.) - quantidade de cada um dos itens solicitados.
B178: - Coluna (descrição) - descreva os materiais a serem adquiridos, indicando nome, modelo, tipo, etc. Toda a descrição deve ser feita em PORTUGUÊS.
B179: - Coluna (referência do orçamento) - número do orçamento (faça a correlação entre o item solicitado e o orçamento apresentado).
B180: - Coluna (preço unitário)- valor unitário em moeda nacional
B181: - Coluna (custo do item) - total parcial em moeda nacional, do material solicitado em cada item. (O preenchimento e totalização desta coluna é automático).
B182: - Coluna (FAPESP) - para uso exclusivo da FAPESP.
B184: OBSERVAÇÕES:
B185: 1) Três orçamentos (não é necessário apresentar proformas na submissão) para cada um dos itens de Material Permanente Nacional ou Importado cujo valor supere dez vezes o salário mínimo nacional.
B186: 2) Recomenda-se uma verificação de preços antes da solicitação, a fim de evitar alterações no decorrer do projeto e demoras indesejáveis.
B187: 3) Justifique em anexo a utilidade de cada material solicitado para o desenvolvimento do projeto de pesquisa proposto.
B189: EXEMPLO
B190: item | C190: quant. | D190: descrição (somente 1 linha para cada item) | L190: referência do orçamento | M190: preço unitário | N190: custo do item | O190: FAPESP
B192: 1 | C192: 1 | D192: Cuba de eletroforese horizontal | M192: 500 | N192: =IF(C192=0,0,C192*M192) -> 500
B193: 1a | C193: 2 | D193: Pente 30 dentes, 1 mm espessura, para uso com a cuba acima | M193: 46 | N193: =IF(C193=0,0,C193*M193) -> 92
B194: 1b | C194: 2 | D194: Pente 30 dentes, 2 mm espessura, para uso com a cuba acima | M194: 46 | N194: =IF(C194=0,0,C194*M194) -> 92
B195: 2 | C195: 1 | D195: Transdutor ultrasônico | M195: 1100 | N195: =IF(C195=0,0,C195*M195) -> 1100
B196: 2a | C196: 1 | D196: cabo padrão a prova d'água | M196: 50 | N196: =IF(C196=0,0,C196*M196) -> 50
M197: TOTAL | N197: =SUM(N192:O196) -> 1834
B198: =B118 -> - JUSTIFIQUE EM ANEXO A UTILIDADE DE CADA MATERIAL SOLICITADO PARA O DESENVOLVIMENTO DO PROJETO DE PESQUISA PROPOSTO.

Sheet 2-MPI
B6: 2- MATERIAL PERMANENTE IMPORTADO
B8: NOME DO INTERESSADO:
B10: PROCESSO: | O10: Chamada FAPESP-FCT 2017
B12: CÂMBIO (INFORME A SIGLA DA MOEDA E O VALOR DE SUA TAXA EM DÓLAR)
B14: MOEDA 1: | D14: USD | E14: TAXA: | F14: 1 | I14: MOEDA 2: | L14: TAXA: | O14: MOEDA 3: | R14: TAXA:
B16: MOEDA 4: | E16: TAXA: | I16: MOEDA 5: | L16: TAXA: | O16: MOEDA 6: | R16: TAXA:
B18: TOTAL: | D18: =IF(SUM(Q22:S61,Q68:S114)=0,"",SUM(Q22:S61,Q68:S114)) -> 
B20: item | C20: quant. | D20: descrição (somente 1 linha para cada item) | L20: referência do orçamento | M20: moeda de origem | N20: preço unitário | O20: custo do item moeda original | Q20: custo do item US$ | T20: FAPESP
O22: =IF(C22*N22=0,"",C22*N22) ->  | Q22: =IF(ISERROR(INDEX($W$22:$W$27,MATCH(M22,$V$22:$V$27,0))*O22),"",INDEX($W$22:$W$27,MATCH(M22,$V$22:$V$27,0))*O22) ->  | V22: =D14 -> USD | W22: =F14 -> 1
O23: =IF(C23*N23=0,"",C23*N23) ->  | Q23: =IF(ISERROR(INDEX($W$22:$W$27,MATCH(M23,$V$22:$V$27,0))*O23),"",INDEX($W$22:$W$27,MATCH(M23,$V$22:$V$27,0))*O23) ->  | V23: =IF(K14=0,"",K14) ->  | W23: =M14 -> 0
V24: =IF(Q14=0,"",Q14) ->  | W24: =S14 -> 0
V25: =IF(D16=0,"",D16) ->  | W25: =F16 -> 0
V26: =IF(K16=0,"",K16) ->  | W26: =M16 -> 0
V27: =IF(Q16=0,"", Q16) ->  | W27: =S16 -> 0
B63: - JUSTIFIQUE EM ANEXO A UTILIDADE DE CADA MATERIAL SOLICITADO PARA O DESENVOLVIMENTO DO PROJETO DE PESQUISA PROPOSTO.
B64: ='1-MPN'!B119 -> FAPESP, MARÇO DE 2017 | T64: 1
B65: MATERIAL PERMANENTE IMPORTADO
B66: item | C66: quant. | D66: descrição (somente 1 linha para cada item) | L66: referência do orçamento | M66: moeda de origem | N66: preço unitário | O66: custo do item moeda original | Q66: custo do item US$ | T66: FAPESP
O68: =IF(C68*N68=0,"",C68*N68) ->  | Q68: =IF(ISERROR(INDEX($W$22:$W$27,MATCH(M68,$V$22:$V$27,0))*O68),"",INDEX($W$22:$W$27,MATCH(M68,$V$22:$V$27,0))*O68) -> 
Q69: =IF(ISERROR(INDEX($W$22:$W$27,MATCH(M69,$V$22:$V$27,0))*O69),"",INDEX($W$22:$W$27,MATCH(M69,$V$22:$V$27,0))*O69) -> 
B116: =B63 -> - JUSTIFIQUE EM ANEXO A UTILIDADE DE CADA MATERIAL SOLICITADO PARA O DESENVOLVIMENTO DO PROJETO DE PESQUISA PROPOSTO.
B117: =B64 -> FAPESP, MARÇO DE 2017 | S117: 7
B153: PARA IMPRIMIR A INSTRUÇÃO ABAIXO, SELECIONE A ÁREA A SER IMPRESSA
B154: DIGITE "CTRL" P, E DEPOIS CLIQUE EM SELEÇÃO.
C158: FORMULÁRIO 2 - INSTRUÇÕES PARA PREENCHIMENTO – LEIA ATENTAMENTE AS INSTRUÇÕES ABAIXO.
C159: MATERIAL PERMANENTE IMPORTADO (MPI)
B161: NÃO SERÃO ACEITOS FORMULÁRIOS PREENCHIDOS EM DESACORDO COM ESTA INSTRUÇÃO
B163: - Não incluir aquisição de publicações, materiais administrativos, etc. O Auxílio destina-se exclusivamente a materiais de pesquisa.
B164: - Devem ser incluídos nesta folha todos os materiais permanentes que se pretendam adquirir diretamente no exterior (importação direta).
B165: - Coluna (item) - cada material solicitado deve ser numerado seqüencialmente. Considere um item para cada material (equipamento e componentes) e um sub-item para
B166: cada um dos seus acessórios, deixando claro quais são os acessórios correspondentes a um determinado item (Ver exemplo abaixo)
B167: - Coluna (quant.) - quantidade de cada um dos itens solicitados.
B168: - Coluna (descrição) - descreva os materiais que se pretende adquirir, indicando nome, modelo, tipo, etc. e país de procedência, descreva despesas cobradas pelo
B169: exportador (ex.: embalagem, documentação, etc). Toda a descrição deve ser feita em PORTUGUÊS.
B170: - Coluna (referência do orçamento) - faça a correlação entre o item solicitado e o orçamento apresentado.
B171: - Coluna (moeda de origem) – indique a moeda de origem, como fornecido no orçamento do exportador/representante autorizado.
B172: - Coluna (preço unitário) – valor unitário do item, na moeda de origem (indicar a moeda na coluna anterior).
B173: - Coluna (custo do item-moeda original) - custo total parcial,na moeda de origem,do material solicitado em cada item.
B174: Não incluir despesas como embalagem. Frete interno, etc..,
B175: - Coluna (custo do item - US$) conversão automática para dólar americano, do valor calculado na coluna anterior.
B176: - Coluna (FAPESP) – para uso exclusivo da FAPESP.
B178: OBSERVAÇÕES:
B179: 1) Três orçamentos (não é necessário apresentar proformas na submissão) para cada um dos itens de Material Permanente Nacional ou Importado cujo valor supere dez vezes o salário mínimo nacional.
B180: 2) Todo valor remetido ao exterior é deduzido dos recursos concedidos;
B181: 3 Justifique em anexo a utilidade de cada material solicitado para o desenvolvimento do projeto de pesquisa proposto;
B182: 4) Despesas com importação devem ser inseridas logo após a descrição de cada item (Ver exemplo abaixo).
B184: EXEMPLO
B186: item | C186: quant. | D186: descrição (somente 1 linha para cada item) | L186: referência do orçamento | M186: moeda de | N186: preço | O186: custo do item moeda original | Q186: custo do item | S186: FAPESP
M187: origem | N187: unitário | Q187: US$
B188: 1 | C188: 1 | D188: CUBA DE ELETROFORESE HORIZONTAL, PROCEDÊNCIA ALEMÃ | M188: EUR | N188: 1000 | O188: =N188*C188 -> 1000 | Q188: 1240
B189: 1a | C189: 2 | D189: PENTE 30 DENTES, MM ESPESSURA, PARA USO COM A CUBA ACIMA, PROC. ALEMÃ | M189: EUR | N189: 92 | O189: =N189*C189 -> 184 | Q189: 228.169
B190: 1b | C190: 1 | D190: PENTE 30 DENTES, 2 MM ESPESSURA PARA USO COM A CUBA ACIMA PROC. ALEMÃ | M190: EUR | N190: 40 | O190: =N190*C190 -> 40 | Q190: 49.6
B191: 1c | C191: 1 | D191: DESPESAS COM FRETE, EMBALAGEM, DOCUMENTAÇÃO | M191: EUR | N191: 40 | O191: =N191*C191 -> 40 | Q191: 49.6
O192: TOTAL | Q192: =SUM(Q188:Q191) -> 1567.369
B193: =B116 -> - JUSTIFIQUE EM ANEXO A UTILIDADE DE CADA MATERIAL SOLICITADO PARA O DESENVOLVIMENTO DO PROJETO DE PESQUISA PROPOSTO.

Sheet 3-MCN
A1: MM
B6: 3- MATERIAL DE CONSUMO A SER ADQUIRIDO NO BRASIL
B8: NOME DO INTERESSADO:
A10: 7 | B10: PROCESSO: | K10: Chamada FAPESP-FCT 2017
B12: TOTAL: | D12: =IF(SUM(M15:M55,M63:M103,M111:M151)=0,"",SUM(M15:M55,M63:M103,M111:M151)) -> 
B14: item | C14: descrição (somente 1 linha para cada item) | M14: custo do item | N14: FAPESP
A15: 7
A33: 7
A34: 7
A35: 7
A36: 7
A37: 7
A38: 7
A39: 7
A40: 7
A41: 7
A52: 7
A53: 7
A54: 7
A55: 7
A56: 7
A57: 7 | B57: - JUSTIFIQUE EM ANEXO A UTILIDADE DE CADA MATERIAL SOLICITADO PARA O DESENVOLVIMENTO DO PROJETO DE PESQUISA
B58: ='1-MPN'!B66 -> FAPESP, MARÇO DE 2017 | N58: 1
B60: =B6 -> 3- MATERIAL DE CONSUMO A SER ADQUIRIDO NO BRASIL
B61: item | C61: descrição (somente 1 linha para cada item) | M61: custo do item | N61: FAPESP
A63: 7
B105: - JUSTIFIQUE EM ANEXO A UTILIDADE DE CADA MATERIAL SOLICITADO PARA O DESENVOLVIMENTO DO PROJETO DE PESQUISA
B106: =B58 -> FAPESP, MARÇO DE 2017 | N106: 2
B108: =B60 -> 3- MATERIAL DE CONSUMO A SER ADQUIRIDO NO BRASIL
B109: item | C109: descrição (somente 1 linha para cada item) | M109: custo do item | N109: FAPESP
B153: - JUSTIFIQUE EM ANEXO A UTILIDADE DE CADA MATERIAL SOLICITADO PARA O DESENVOLVIMENTO DO PROJETO DE PESQUISA
B154: =B106 -> FAPESP, MARÇO DE 2017 | N154: 3
B168: PARA IMPRIMIR A INSTRUÇÃO ABAIXO, SELECIONE A ÁREA A SER IMPRESSA
B169: DIGITE "CTRL" P, E DEPOIS CLIQUE EM SELEÇÃO.
B173: FORMULÁRIO 3 - INSTRUÇÕES PARA PREENCHIMENTO – LEIA ATENTAMENTE AS INSTRUÇÕES ABAIXO.
B174: MATERIAL DE CONSUMO A SER ADQUIRIDO NO BRASIL (MCN)
B176: NÃO SERÃO ACEITOS FORMULÁRIOS PREENCHIDOS EM DESACORDO COM ESTA INSTRUÇÃO
B178: - A FAPESP somente autoriza a aquisição de produtos para uso exclusivo na pesquisa/programa objeto desta solicitação, excluindo-se materiais de
B179: escritório, insumos computacionais, etc.
B180: - Não solicitar recursos sem especificar o que se pretende adquirir (Itens como "diversos", "outros materiais", etc., não serão considerados).
B181: - Os produtos devem ser agrupados por tipo, não havendo necessidade de detalhamento dos mesmos (Ver exemplo abaixo).
B182: - Coluna (item) - cada grupo de materiais deve ser numerado seqüencialmente. Considere um item para cada grupo.
B183: - Coluna (decrição)- descreva o grupo de material que se pretende adquirir,como exemplificado abaixo. Toda a descrição deve ser feita em PORTUGUÊS.
B184: - Coluna (custo do item) - custo total do material solicitado em cada item
B185: - Coluna (FAPESP) - para uso exclusivo da FAPESP.
B187: OBSERVAÇÕES
B189: 1) Recomenda-se uma verificação de preços antes da solicitação, a fim de evitar alterações no decorrer do projeto e demoras indesejáveis.
B190: 2) Justifique em anexo a utilidade de cada grupo de materiais solicitado para o desenvolvimento do projeto de pesquisa proposto.
B192: EXEMPLO
B194: item | C194: descrição (somente 1 linha para cada item) | L194: custo do item | N194: FAPESP
B195: 1 | C195: Vidraria para laboratório | L195: 1000
B196: 2 | C196: Reagentes | L196: 2000
B197: 3 | C197: Tubos para centrífuga | L197: 800
B198: 4 | C198: Material plástico descartável | L198: 500
B199: 5 | C199: Material radioativo | L199: 2000
L200: 6300
B202: - JUSTIFIQUE EM ANEXO A UTILIDADE DE CADA MATERIAL SOLICITADO PARA O DESENVOLVIMENTO DO PROJETO DE PESQUISA
B203: =B154 -> FAPESP, MARÇO DE 2017

Sheet 4-MCI
B6: 4- MATERIAL DE CONSUMO IMPORTADO
B8: NOME DO INTERESSADO: | T8: 7
B10: PROCESSO: | O10: Chamada FAPESP-FCT 2017
B12: CÂMBIO (INFORME A SIGLA DA MOEDA E O VALOR DE SUA TAXA EM DÓLAR)
B14: MOEDA 1: | C14: USD | D14: TAXA: | E14: 1 | H14: MOEDA 2: | J14: TAXA: | O14: MOEDA 3: | Q14: TAXA:
B16: MOEDA 4: | D16: TAXA: | H16: MOEDA 5: | J16: TAXA: | O16: MOEDA 6: | Q16: TAXA:
B18: TOTAL: | D18: =IF(SUM(Q22:R59,Q66:R109)=0,"",SUM(Q22:R59,Q66:R109)) -> 
B20: item | C20: descrição (somente 1 linha para cada item) | M20: moeda de origem | N20: custo do item moeda original | Q20: custo do item US$ | S20: FAPESP
Q22: =IF(ISERROR(INDEX($V$22:$V$27,MATCH(M22,$U$22:$U$27,0))*O22),"",INDEX($V$22:$V$27,MATCH(M22,$U$22:$U$27,0))*O22) ->  | U22: =IF($C$14=0,"",C$14) -> USD | V22: =IF(E14=0,"",E14) -> 1
Q23: =IF(ISERROR(INDEX($V$22:$V$27,MATCH(M23,$U$22:$U$27,0))*O23),"",INDEX($V$22:$V$27,MATCH(M23,$U$22:$U$27,0))*O23) ->  | U23: =IF($I$14=0,"",$I$14) ->  | V23: =IF(K14=0,"",K14) -> 
U24: =IF($P$14=0,"",$P$14) ->  | V24: =IF(R14=0,"",R14) -> 
U25: =IF($C$16=0,"",$C$16) ->  | V25: =IF(E16=0,"",E16) -> 
U26: =IF(I16=0,"",I16) ->  | V26: =IF(K16=0,"",K16) -> 
U27: =IF($P$16=0,"",$P$16) ->  | V27: =IF(R16=0,"",R16) -> 
B61: - JUSTIFIQUE EM ANEXO A UTILIDADE DE CADA MATERIAL SOLICITADO PARA O DESENVOLVIMENTO DO PROJETO DE PESQUISA
B62: ='3-MCN'!B58 -> FAPESP, MARÇO DE 2017 | Q62: 1
B63: =B6 -> 4- MATERIAL DE CONSUMO IMPORTADO
B64: item | C64: descrição (somente 1 linha para cada item) | M64: moeda de origem | N64: custo do item moeda original | Q64: custo do item US$ | S64: FAPESP
Q66: =IF(ISERROR(INDEX($V$22:$V$27,MATCH(M66,$U$22:$U$27,0))*O66),"",INDEX($V$22:$V$27,MATCH(M66,$U$22:$U$27,0))*O66) -> 
Q67: =IF(ISERROR(INDEX($V$22:$V$27,MATCH(M67,$U$22:$U$27,0))*O67),"",INDEX($V$22:$V$27,MATCH(M67,$U$22:$U$27,0))*O67) -> 
B111: - JUSTIFIQUE EM ANEXO A UTILIDADE DE CADA MATERIAL SOLICITADO PARA O DESENVOLVIMENTO DO PROJETO DE PESQUISA
B112: =B62 -> FAPESP, MARÇO DE 2017 | Q112: 2
B158: PARA IMPRIMIR A INSTRUÇÃO ABAIXO, SELECIONE A ÁREA A SER IMPRESSA
B159: DIGITE "CTRL" P, E DEPOIS CLIQUE EM SELEÇÃO.
B163: FORMULÁRIO 4 - INSTRUÇÕES PARA PREENCHIMENTO – LEIA ATENTAMENTE AS INSTRUÇÕES ABAIXO.
B164: MATERIAL DE CONSUMO IMPORTADO (MCI)
B166: NÃO SERÃO ACEITOS FORMULÁRIOS PREENCHIDOS EM DESACORDO COM ESTA INSTRUÇÃO
B168: - A FAPESP somente autoriza a aquisição de produtos para uso exclusivo na pesquisa/programa objeto desta solicitação, excluindo-se materiais de escritório, insumos
B169: computacionais, etc.
B170: - Não solicitar recursos sem especificar o que se pretende adquirir (itens como "diversos", "outros materiais", etc, não serão considerados).
B171: - Os produtos devem ser agrupados por tipo, não havendo necessidade de detalhamento dos mesmos.
B172: - Coluna (item) - cada grupo de materiais deve ser numerado sequencialmente. Considere um item para cada grupo.
B173: - Coluna (descrição) - descreva o grupo de material que se pretende adquirir. Descreva despesas cobradas pelo exportador (ex.: embalagem, documentação, etc).
B174: Toda a descrição deve ser feita em PORTUGUÊS, (Ver exemplo abaixo).
B175: - Coluna (moeda de origem) - indique a moeda de origem, como fornecido no orçamento do exportador/representante autorizado.
B176: - Coluna (custo do item - moeda original) - custo total do material solicitado em cada item a moeda original.
B177: - Coluna (custo do item US$) - conversão automática para dólar americano, do valor informado na coluna anterior.
B178: - Coluna (FAPESP) - para uso exclusivo da FAPESP.
B180: OBSERVAÇÕES:
B181: 1) Todo o valor remetido ao exterior é deduzido dos recursos concedidos;
B182: 2) Justifique em anexo a utilidade de cada grupo de material solicitado para o desenvolvimento do projeto de pesquisa proposto.
B184: EXEMPLO :
B186: CÂMBIO (DIGITE A SIGLA DA MOEDA E O VALOR DE SUA TAXA EM DÓLAR)
B188: MOEDA 1: | C188: USD | D188: TAXA: | E188: 1 | H188: MOEDA 2: | I188: DEM | J188: TAXA: | K188: 1.83487 | O188: MOEDA 3: | P188: GBP | Q188: TAXA: | R188: 1.74
B190: item | C190: descrição (somente 1 linha para cada item) | M190: moeda de origem | N190: custo do item moeda original | Q190: custo do item US$ | S190: FAPESP
B192: 1 | C192: Vidraria, procedência alemã | M192: DEM | N192: 10000 | Q192: =N192*$K$188 -> 18348.7
B193: 1a | C193: Despesas com frete, embalagem, documentação | M193: DEM | N193: =N192-1234 -> 8766 | Q193: 16084.47042
B194: 2 | C194: Vidraria, procedência americana | M194: USD | N194: =N193-1234 -> 7532 | Q194: 13820.24084
B195: 2a | C195: Despesas com frete, embalagem, documentação | M195: USD | N195: =N194-1234 -> 6298 | Q195: 11556.01126
B196: 3 | C196: Isótopos radiotivos, procedência inglesa | M196: GBP | N196: =N195-1234 -> 5064 | Q196: 9291.78168
B197: 3a | C197: Despesas com frete, embalagem, documentação | M197: GBP | N197: =N196-1234 -> 3830 | Q197: 7027.5521
Q198: =SUM(Q192:R197) -> 76128.7563
B200: - JUSTIFIQUE EM ANEXO A UTILIDADE DE CADA MATERIAL SOLICITADO PARA O DESENVOLVIMENTO DO PROJETO DE PESQUISA
B201: =B112 -> FAPESP, MARÇO DE 2017

Sheet 5-STB
B6: 5- SERVIÇOS DE TERCEIROS NO BRASIL
B8: NOME DO INTERESSADO:
B10: PROCESSO: | N10: Chamada FAPESP-FCT 2017
B12: TOTAL: | D12: =IF(SUM(O16:O58,O65:O109)=0,"",SUM(O16:O58,O65:O109)) -> 
B14: item | D14: quant. | E14: descrição (somente 1 linha para cada item) | N14: preço unitário | O14: custo do item | P14: FAPESP
O16: =IF(N16*D16=0,"",N16*D16) -> 
B60: - JUSTIFIQUE EM ANEXO A UTILIDADE DOS SERVIÇOS SOLICITADOS PARA O DESENVOLVIMENTO DO PROJETO DE PESQUISA
B61: ='1-MPN'!B66 -> FAPESP, MARÇO DE 2017 | O61: 1
B62: =B6 -> 5- SERVIÇOS DE TERCEIROS NO BRASIL
B63: Item | D63: Quant. | E63: descrição (somente 1 linha para cada item) | N63: preço unitário | O63: custo do item | P63: FAPESP
O65: =IF(N65*D65=0,"",N65*D65) -> 
B111: - JUSTIFIQUE EM ANEXO A UTILIDADE DOS SERVIÇOS SOLICITADOS PARA O DESENVOLVIMENTO DO PROJETO DE PESQUISA
B112: =B61 -> FAPESP, MARÇO DE 2017 | O112: 2
B165: PARA IMPRIMIR A INSTRUÇÃO ABAIXO, SELECIONE A ÁREA A SER IMPRESSA
B166: DIGITE "CTRL" P, E DEPOIS CLIQUE EM SELEÇÃO.
B170: FORMULÁRIO 5 - INSTRUÇÕES PARA PREENCHIMENTO – LEIA ATENTAMENTE AS INSTRUÇÕES ABAIXO.
B171: SERVIÇOS DE TERCEIROS NO BRASIL (STB)
B173: NÃO SERÃO ACEITOS FORMULÁRIOS PREENCHIDOS EM DESACORDO COM ESTA INSTRUÇÃO
B175: - Somente são analisadas solicitações de recursos para serviços especializados e de curta duração. Não incluir salários de qualquer natureza, bolsas no País ou no exterior,
B176: serviços administrativos ou contratos para manutenção de equipamentos.
B177: - Coluna (item) - cada tipo de serviço deve ser numerado seqüencialmente. (ver exemplo abaixo).
B178: - Coluna (quant.) - quantidade de cada serviço, quando possível
B179: - Coluna (descrição) - descrição detalhada do serviço e executor a ser contratado. Toda a descrição deve ser feita em PORTUGUÊS.
B180: - Coluna (preço unitário) - valor unitário em moeda nacional.
B181: - Coluna (custo do item) - custo total de cada item solicitado, em moeda nacional. (a totalização desta coluna é automática).
B182: - Coluna (FAPESP) - para uso exclusivo da FAPESP.
B184: OBSERVAÇÕES:
B185: 1) Para a contratação de recursos humanos de apoio à pesquisa, ver Programa FAPESP de Capacitação Técnica.
B186: 2) Justifique em anexo a utilidade de cada um dos serviços solicitados para o desenvolvimento do projeto de pesquisa proposto.
B188: EXEMPLO
B190: item | D190: quant. | E190: descrição (somente 1 linha para cada item) | N190: preço unitário | O190: custo do item | P190: FAPESP
B192: 1 | D192: 1 | E192: Ensaios em campo e em casas de vegetação para obtenção das sementes a serem realizadas pelo instituto. | N192: 4000 | O192: =N192*D192 -> 4000
B193: 2 | D193: 30 | E193: Horas de uso da microssonda do Instituto .......... | N193: 240 | O193: =N193*D193 -> 7200
B194: 3 | D194: 1 | E194: Conserto do evaporador, a ser realizado pela empresa ....... | N194: 600 | O194: =N194*D194 -> 600
N195: TOTAL | O195: =SUM(O192:O194) -> 11800
B197: - JUSTIFIQUE EM ANEXO A UTILIDADE DOS SERVIÇOS SOLICITADOS PARA O DESENVOLVIMENTO DO PROJETO DE PESQUISA
B204: =B112 -> FAPESP, MARÇO DE 2017

Sheet 6-STE
B6: 6- SERVIÇOS DE TERCEIROS NO EXTERIOR
B8: NOME DO INTERESSADO:
B10: PROCESSO: | M10: Chamada FAPESP-FCT 2017
B13: CÂMBIO (DIGITE A SIGLA DA MOEDA E O VALOR DE SUA TAXA EM DÓLAR)
B14: MOEDA 1: | C14: USD | D14: TAXA: | E14: 1 | G14: MOEDA 2: | I14: TAXA: | L14: MOEDA 3: | N14: TAXA:
B16: MOEDA 4: | D16: TAXA: | G16: MOEDA 5: | I16: TAXA: | L16: MOEDA 6: | N16: TAXA:
B18: TOTAL | D18: =IF(SUM(O23:O59,O66:O110)=0,"",SUM(O23:O59,O66:O110)) -> 
B21: item | C21: quant. | D21: descrição (somente 1 linha para cada item) | K21: moeda de origem | L21: preço unitário | M21: custo do item moeda original | O21: custo do item US$ | P21: FAPESP | R21: SE(ÉERROS(ÍNDICE($U$43:$U$48;CORRESP(K22;$T$43:$T$48;0))*M22);"";ÍNDICE($U$43:$U$48;CORRESP(K22;$T$43:$T$48;0))*M22)
M23: =IF(C23*L23=0,"",C23*L23) ->  | O23: =IF(ISERROR(INDEX($S$23:$S$28,MATCH(K23,$R$23:$R$28,0))*M23),"",INDEX($S$23:$S$28,MATCH(K23,$R$23:$R$28,0))*M23) ->  | R23: =IF($C$14=0,"",$C$14) -> USD | S23: =$E$14 -> 1
M24: =IF(C24*L24=0,"",C24*L24) ->  | O24: =IF(ISERROR(INDEX($S$23:$S$28,MATCH(K24,$R$23:$R$28,0))*M24),"",INDEX($S$23:$S$28,MATCH(K24,$R$23:$R$28,0))*M24) ->  | R24: =IF($H$14=0,"",$H$14) ->  | S24: =$J$14 -> 0
R25: =IF($M$14=0,"",$M$14) ->  | S25: =$O$14 -> 0
R26: =IF($C$16=0,"",$C$16) ->  | S26: =$E$16 -> 0
R27: =IF($H$16=0,"") ->  | S27: =$J$16 -> 0
R28: =IF($M$16=0,"",$M$16) ->  | S28: =$O$16 -> 0
B61: - JUSTIFIQUE EM ANEXO A UTILIDADE DOS SERVIÇOS SOLICITADOS PARA O DESENVOLVIMENTO DO PROJETO DE PESQUISA
B62: ='5-STB'!B112 -> FAPESP, MARÇO DE 2017 | P62: 1
B63: =B6 -> 6- SERVIÇOS DE TERCEIROS NO EXTERIOR
B64: item | C64: quant. | D64: descrição (somente 1 linha para cada item) | K64: moeda de origem | L64: preço unitário | M64: custo do item moeda original | O64: custo do item US$ | P64: FAPESP
M66: =IF(C66*L66=0,"",C66*L66) ->  | O66: =IF(ISERROR(INDEX($S$23:$S$28,MATCH(K66,$R$23:$R$28,0))*M66),"",INDEX($S$23:$S$28,MATCH(K66,$R$23:$R$28,0))*M66) -> 
O67: =IF(ISERROR(INDEX($S$23:$S$28,MATCH(K67,$R$23:$R$28,0))*M67),"",INDEX($S$23:$S$28,MATCH(K67,$R$23:$R$28,0))*M67) -> 
B112: - JUSTIFIQUE EM ANEXO A UTILIDADE DOS SERVIÇOS SOLICITADOS PARA O DESENVOLVIMENTO DO PROJETO DE PESQUISA
B113: =B62 -> FAPESP, MARÇO DE 2017 | P113: 2
B156: PARA IMPRIMIR A INSTRUÇÃO ABAIXO, SELECIONE A ÁREA A SER IMPRESSA
B157: DIGITE "CTRL" P, E DEPOIS CLIQUE EM SELEÇÃO.
B161: FORMULÁRIO 6 - INSTRUÇÕES PARA PREENCHIMENTO – LEIA ATENTAMENTE AS INSTRUÇÕES ABAIXO.
B162: SERVIÇOS DE TERCEIROS A SEREM CONTRATADOS NO EXTERIOR (STE)
B164: NÃO SERÃO ACEITOS FORMULÁRIOS PREENCHIDOS EM DESACORDO COM ESTA INSTRUÇÃO
B165: - Somente são analisadas solicitações de recursos para serviços especializados e de curta duração. Não incluir salários de qualquer natureza, bolsas no País ou no exterior,
B166: serviços administrativos ou contratos para manutenção de equipamentos.
B167: - Coluna (item) - cada tipo de serviço deve ser numerado seqüencialmente. (Ver exemplo abaixo).
B168: - Coluna (quant.) - quantidade de cada serviço, quando possível.
B169: - Coluna (descrição) - descrição detalhada do serviço e executor a ser contratado. Descreva despesas cobradas pelo executor (ex.: embalagem, documentação, etc),
B170: toda a descrição deve ser feita em PORTUGUÊS, (ver exemplo abaixo).
B171: - Coluna (moeda de origem) - indique a moeda de origem.
B172: - Coluna (preço do item) - valor unitário na moeda de origem (indicar moeda na coluna anterior).
B173: - Coluna (custo do item - moeda original) - custo total, na moeda de origem, de cada item solicitado.
B174: - Coluna (custo do item - US$) - conversão automática para o dólar americano, do valor lançado na Coluna custo do item.
B175: - Coluna (FAPESP) - para uso exclusivo da FAPESP
B176: OBSERVAÇÕES:
B177: 1) Para a contratação de recursos humanos de apoio à pesquisa, ver Programa FAPESP de Capacitação Técnica;
B178: 2) Justifique em anexo a utilidade de cada um dos serviços solicitados para o desenvolvimento do projeto de pesquisa proposto;
B179: 3) Todo o valor remetido ao exterior é deduzido dos recursos concedidos.
B180: EXEMPLO
B182: CÂMBIO (DIGITE A SIGLA DA MOEDA E O VALOR DE SUA TAXA EM DÓLAR)
B184: MOEDA 1: | C184: USD | D184: TAXA: | E184: 1 | G184: MOEDA 2: | H184: EUR | I184: TAXA | J184: 1.24 | L184: MOEDA 3: | M184: GBP | N184: TAXA: | O184: 1.78
B186: item | C186: quant. | D186: descrição (somente 1 linha para cada item) | K186: moeda de origem | L186: preço unitário | M186: custo do item moeda original | O186: custo do item US$ | P186: FAPESP
R187: =R23 -> USD | S187: =$E$14 -> 1
B188: 1 | C188: 1 | D188: Reparo de equipamento a ser feito pela empresa... Na Alemanha | K188: USD | L188: 1200 | M188: =C188*L188 -> 1200 | O188: =IF(M188<>0,INDEX($S$187:$S$190,MATCH(K188,$R$187:$R$190,0))*M188,"") -> 1200 | R188: GBP | S188: =O184 -> 1.78
B189: 1a | C189: 1 | D189: Despesas com frete, embalagem, documentação | K189: EUR | L189: 240 | M189: =C189*L189 -> 240 | O189: =M189*J184 -> 297.6 | R189: EUR | S189: =J184 -> 1.24
B190: 2 | C190: 1 | D190: Análise de amostras de ... a serem realizadas pelo Laboratório, ... na Inglaterra | K190: GBP | L190: 456 | M190: =C190*L190 -> 456 | O190: =IF(M190<>0,INDEX($S$187:$S$190,MATCH(K190,$R$187:$R$190,0))*M190,"") -> 811.68 | R190: =R26 -> 
B191: 2a | C191: 1 | D191: Despesas com frete, embalagem, documentação | K191: GBP | L191: 45 | M191: =C191*L191 -> 45 | O191: =IF(M191<>0,INDEX($S$187:$S$190,MATCH(K191,$R$187:$R$190,0))*M191,"") -> 80.1
M192: TOTAL | O192: =SUM(O188:O191) -> 2389.38
B194: - JUSTIFIQUE EM ANEXO A UTILIDADE DOS SERVIÇOS SOLICITADOS PARA O DESENVOLVIMENTO DO PROJETO DE PESQUISA
B195: =B113 -> FAPESP, MARÇO DE 2017

Sheet 7-TRAN
B6: 7- DESPESAS DE TRANSPORTE
B8: NOME DO INTERESSADO:
B10: PROCESSO: | O10: Chamada FAPESP-FCT 2017
B13: TOTAL: | D13: =IF(SUM(P16:P58:P65:P108)=0,"",SUM(P16:P58:P65:P108)) -> 
B15: item | D15: quant. | E15: descrição (somente 1 linha para cada item) | O15: preço unitário | P15: custo do item | Q15: FAPESP
P16: =IF(O16*D16=0,"",O16*D16) -> 
P29: =IF(O29*D29=0,"",O29*D29) -> 
P40: =IF(O40*D40=0,"",O40*D40) -> 
P41: =IF(O41*D41=0,"",O41*D41) -> 
P52: =IF(O52*D52=0,"",O52*D52) -> 
B60: - JUSTIFIQUE EM ANEXO A UTILIDADE DE CADA ITEM SOLICITADO PARA O DESENVOLVIMENTO DO PROJETO DE PESQUISA
B61: ='1-MPN'!B66 -> FAPESP, MARÇO DE 2017 | Q61: 1
B63: =B6 -> 7- DESPESAS DE TRANSPORTE
B64: item | D64: quant. | E64: descrição (somente 1 linha para cada item) | O64: preço unitário | P64: custo do item | Q64: FAPESP
P65: =IF(O65*D65=0,"",O65*D65) -> 
P66: =IF(O66*D66=0,"",O66*D66) -> 
P72: =IF(O72*D72=0,"",O72*D72) -> 
P87: =IF(O87*D87=0,"",O87*D87) -> 
P88: =IF(O88*D88=0,"",O88*D88) -> 
B110: - JUSTIFIQUE EM ANEXO A UTILIDADE DE CADA ITEM SOLICITADO PARA O DESENVOLVIMENTO DO PROJETO DE PESQUISA
B111: =B61 -> FAPESP, MARÇO DE 2017 | Q111: 2
B162: PARA IMPRIMIR A INSTRUÇÃO ABAIXO, SELECIONE A ÁREA A SER IMPRESSA
B163: DIGITE "CTRL" P, E DEPOIS CLIQUE EM SELEÇÃO.
B167: FORMULÁRIO 7 - INSTRUÇÕES PARA PREENCHIMENTO – LEIA ATENTAMENTE AS INSTRUÇÕES ABAIXO.
B168: DESPESAS DE TRANSPORTE (DET)
B170: NÃO SERÃO ACEITOS FORMULÁRIOS PREENCHIDOS EM DESACORDO COM ESTA INSTRUÇÃO
B172: - Apresente somente orçamento de recursos necessários para a realização de pesquisa de campo, passagens, combustível, etc., para transporte de pessoas.
B173: - Inclua percurso, meio de transporte e nome do usuário dos recursos. Transporte de bens, são considerados Serviços de Terceiros.
B174: - Coluna (item) - cada viagem deve ser numerada seqüencialmente (ver exemplo abaixo).
B175: - Coluna (quant.) - quantidade de viagens a serem realizadas em um mesmo percurso, por uma mesma pessoa.
B176: - Coluna (descrição) - descreva o percurso a ser realizado, o meio de transporte a ser utilizado e indique quem realizará a viagem.
B177: - Coluna (preço unitário) - valor unitário em moeda nacional.
B178: - Coluna (custo do item) - custo total das viagens solicitadas em cada item, em moeda nacional. (a totalização desta coluna é automática).
B179: - Coluna (FAPESP) - para uso exclusivo da FAPESP.
B180: OBSERVAÇÕES:
B181: 1) Auxílios para a vinda de pesquisador visitante, realização de estágios, participação em reunião, etc., devem ser solicitados em processo separado, nas modalidades
B182: específicas para cada finalidade e de acordo com as regras em vigor.
B183: 2) Para a contratação de recursos humanos de apoio à pesquisa, ver Programa FAPESP de Capacitação Técnica.
B184: 3) Justifique em anexo a utilidade de cada item solicitado para o desenvolvimento do projeto de pesquisa proposto.
B185: EXEMPLO
B188: item | D188: quant. | E188: descrição (somente 1 linha para cada item) | O188: preço unitário | P188: custo do item | Q188: FAPESP
B189: 1 | D189: 1 | E189: Aluguel de ônibus, para o percurso São Carlos/São Paulo/São Carlos (Aux.Org.) | O189: 500 | P189: =(O189*D189) -> 500 | IH189: =#REF! ->  | II189: =IF(IH189<>0,IH189,"") -> 
B190: 2 | D190: 2 | E190: Passagens aéreas SP/Rio de Janeiro/SP a serem utilizadas por João da Silva, em pesquisa de campo. | O190: 200 | P190: =(O190*D190) -> 400 | IH190: =#REF! ->  | II190: =IF(IH190<>0,IH190,"") -> 
B191: 3 | D191: 1 | E191: Passagem aérea New York/SP/New York-palestrante Joseph Smith (Aux.Org.) | O191: 2000 | P191: =(O191*D191) -> 2000 | IH191: =#REF! ->  | II191: =IF(IH191<>0,IH191,"") -> 
B192: 4 | D192: 1 | E192: Passagem aérea New York/SP/New York – palestrante John Thompson (Aux.Org.) | O192: 2000 | P192: =(O192*D192) -> 2000 | IH192: =#REF! ->  | II192: =IF(IH192<>0,IH192,"") -> 
O193: TOTAL | P193: =SUM(P189:Q192) -> 4900 | IH193: =IF(IG193<>0,IG193,"") -> 
B195: - JUSTIFIQUE EM ANEXO A UTILIDADE DE CADA ITEM SOLICITADO PARA O DESENVOLVIMENTO DO PROJETO DE PESQUISA
B196: =B111 -> FAPESP, MARÇO DE 2017

Sheet 8-DIP-DIE
B6: 8- DESPESAS COM DIÁRIAS NO PAÍS E NO EXTERIOR
B8: NOME DO INTERESSADO:
B10: PROCESSO: | O10: Chamada FAPESP-FCT 2017
B12: TOTAL DIP: | D12: =IF(SUM(O15:O57,O63:O103)=0,"",SUM(O15:O57,O63:O103)) ->  | H12: TOTAL DIE: | K12: =IF(SUM(P15:P57,P63:P103)=0,"",SUM(P15:P57,P63:P103)) -> 
B14: item | C14: quant. | D14: descrição (somente 1 linha para cada item) | M14: item de despesa | N14: preço unitário | O14: total DIP | P14: total DIE | Q14: FAPESP | S14: DIP
O15: =IF(M15="DIP",C15*N15,"") ->  | P15: =IF(M15="DIE",C15*N15,"") ->  | S15: DIE
O33: =IF(M33="DIP",C33*N33,"") ->  | P33: =IF(M33="DIE",C33*N33,"") -> 
P56: =IF(M56="DIE",C56*N56,"") -> 
P57: =IF(M57="DIE",C57*N57,"") -> 
B59: - JUSTIFIQUE EM ANEXO A UTILIDADE DE CADA ITEM SOLICITADO PARA O DESENVOLVIMENTO DO PROJETO DE PESQUISA
B60: ='1-MPN'!$B$66 -> FAPESP, MARÇO DE 2017 | Q60: 1
B61: =B6 -> 8- DESPESAS COM DIÁRIAS NO PAÍS E NO EXTERIOR
B62: item | C62: quant. | D62: descrição (somente 1 linha para cada item) | M62: item de despesa | N62: preço unitário | O62: total DIP | P62: total DIE | Q62: FAPESP
O63: =IF(M63="DIP",C63*N63,"") ->  | P63: =IF(M63="DIE",C63*N63,"") -> 
O73: =IF(M73="DIP",C73*N73,"") ->  | P73: =IF(M73="DIE",C73*N73,"") -> 
B105: - JUSTIFIQUE EM ANEXO A UTILIDADE DE CADA ITEM SOLICITADO PARA O DESENVOLVIMENTO DO PROJETO DE PESQUISA
B106: ='1-MPN'!$B$66 -> FAPESP, MARÇO DE 2017 | Q106: 2
B160: PARA IMPRIMIR A INSTRUÇÃO ABAIXO, SELECIONE A ÁREA A SER IMPRESSA
B161: DIGITE "CTRL" P, E DEPOIS CLIQUE EM SELEÇÃO.
B165: FORMULÁRIO 8- DESPESAS COM DIÁRIAS NO PAÍS E NO EXTERIOR
B166: INSTRUÇÕES PARA PREENCHIMENTO – LEIA ATENTAMENTE AS INSTRUÇÕES ABAIXO.
B168: NÃO SERÃO ACEITOS FORMULÁRIOS PREENCHIDOS EM DESACORDO COM ESTA INSTRUÇÃO
B170: - Apresente somente orçamento de recursos necessários para a realização de viagens. Se Concedido, o valor de cada diária não poderá ultrapassar o limite da tabela da FAPESP.
B171: - Coluna (item) - cada viagem deve ser numerada seqüencialmente (ver exemplo abaixo).
B172: - Coluna (quantidade) - quantidade de diárias necessárias para cada viagem/usuário.
B173: - Coluna (descrição) - descreva a viagem que se pretende realizar e indique quem será o usuário das diárias (Toda a descrição deve ser feita em português).
B174: - Coluna (item de despesa) - informe se é DIP ou DIE.
B175: - Coluna (preço unitário) - valor unitário em moeda nacional.
B176: - Coluna (total DIP) - cálculo automático do valor total das diárias solicitadas no PAÍS, conforme seleção da coluna (item de despesa).
B177: - Coluna (total DIE) - cálculo automático do valor total das diárias solicitadas no EXTERIOR, conforme seleção da coluna (item de despesa).
B178: - Coluna () - para uso exclusivo da FAPESP.
B180: OBSERVAÇÕES:
B181: 1) Auxílios para a vinda de pesquisador visitante, realização de estágios, participação em reunião, etc. devem ser solicitados em formulários específicos
B182: para cada finalidade e de acordo com as regras em vigor.
B183: 2) Para a contratação de recursos humanos de apoio à pesquisa, ver Programa FAPESP de Capacitação Técnica.
B184: 3) Justifique em anexo a utilidade de cada item solicitado para o desenvolvimento do projeto de pesquisa proposto.
B185: EXEMPLO
B187: item | D187: quant. | E187: descrição (somente 1 linha para cada item) | M187: item de despesa | N187: preço unitário | O187: total DIP | P187: total DIE | Q187: FAPESP
B188: 1 | D188: 3 | E188: Pesquisa de campo a ser realizada por ......, na cidade de Brasília | M188: DIP | N188: 200 | O188: =N188*D188 -> 600 | IE188: =#REF! ->  | IF188: =IF(IE188<>0,IE188,"") -> 
B189: 2 | D189: 2 | E189: Pesquisa de campo a ser realizada por ......, na cidade do Rio de Janeiro | M189: DIP | N189: 200 | O189: =N189*D189 -> 400 | IE189: =#REF! ->  | IF189: =IF(IE189<>0,IE189,"") -> 
B190: 3 | D190: 2 | E190: Pesquisa de campo a ser realizada por ......, em New York City | M190: die | N190: 350 | P190: 700
B193: - JUSTIFIQUE EM ANEXO A UTILIDADE DE CADA ITEM SOLICITADO PARA O DESENVOLVIMENTO DO PROJETO DE PESQUISA
B194: ='1-MPN'!$B$66 -> FAPESP, MARÇO DE 2017 | Q194: 2

Sheet 9a-BOLSAS - TT
B7: 9A- BOLSAS DE CAPACITAÇÃO TÉCNICA VINCULADAS AO | I7: ='1-MPN'!B7 -> AUXÍLIO À PESQUISA - REGULAR
B9: NOME DO INTERESSADO:
B11: PROCESSO: | J11: Chamada FAPESP-FCT 2017
B13: TOTAL: | E13: =IF(SUM(K16:K49)=0,"",(SUM(K16:K49))) -> 
B15: item | E15: modalidade | F15: quantidade | G15: duração (meses) | H15: carga horária semanal | I15: valor integral da bolsa | J15: valor da mensalidade | K15: custo total | L15: FAPESP
I16: =IF(E16=0,"",INDEX($O$16:$O$21,MATCH(E16,$N$16:$N$21,0))) ->  | J16: =IF(ISERROR(K16/G16/F16),"",(K16/G16/F16)) ->  | K16: =IF(E16=0,"",IF(E16="TT-I",F16*I16*G16,F16*I16*G16*(H16/40))) ->  | N16: =DADOS!B4 -> TT-I | O16: =DADOS!C4 -> 406.5 | Q16: =DADOS!N2 -> 16 | IB16: =#REF! ->  | IC16: =IF(IB16<>0,IB16,"") -> 
N17: =DADOS!B5 -> TT-II | O17: =DADOS!C5 -> 812.1 | Q17: =DADOS!N3 -> 17 | IB17: =#REF! ->  | IC17: =IF(IB17<>0,IB17,"") -> 
N18: =DADOS!B6 -> TT-III | O18: =DADOS!C6 -> 1136.4 | Q18: =DADOS!N4 -> 18
N19: =DADOS!B7 -> TT-IV | O19: =DADOS!C7 -> 2871.9 | Q19: =DADOS!N5 -> 19 | IB19: =#REF! ->  | IC19: =IF(IB19<>0,IB19,"") -> 
N20: =DADOS!B8 -> TT-IV-A | O20: =DADOS!C8 -> 4705.2 | Q20: =DADOS!N6 -> 20 | IB20: =#REF! ->  | IC20: =IF(IB20<>0,IB20,"") -> 
N21: =DADOS!B9 -> TT-V | O21: =DADOS!C9 -> 6819.3 | Q21: =DADOS!N7 -> 21 | IB21: =#REF! ->  | IC21: =IF(IB21<>0,IB21,"") -> 
Q22: =DADOS!N8 -> 22 | IB22: =#REF! ->  | IC22: =IF(IB22<>0,IB22,"") -> 
Q23: =DADOS!N9 -> 23 | IB23: =IF(IA23<>0,IA23,"") -> 
Q24: =DADOS!N10 -> 24
Q25: =DADOS!N11 -> 25 | IB25: =IF(IA25<>0,IA25,"") -> 
Q26: =DADOS!N12 -> 26
Q27: =DADOS!N13 -> 27
Q28: =DADOS!N14 -> 28 | IB28: =IF(IA28<>0,IA28,"") -> 
Q29: =DADOS!N15 -> 29 | IB29: =#REF! ->  | IC29: =IF(IB29<>0,IB29,"") -> 
Q30: =DADOS!N16 -> 30 | IB30: =#REF! ->  | IC30: =IF(IB30<>0,IB30,"") -> 
Q31: =DADOS!N17 -> 31 | IB31: =#REF! ->  | IC31: =IF(IB31<>0,IB31,"") -> 
Q32: =DADOS!N18 -> 32 | IB32: =#REF! ->  | IC32: =IF(IB32<>0,IB32,"") -> 
Q33: =DADOS!N19 -> 33 | IB33: =IF(IA33<>0,IA33,"") -> 
Q34: =DADOS!N20 -> 34
Q35: =DADOS!N21 -> 35 | IB35: =IF(IA35<>0,IA35,"") -> 
Q36: =DADOS!N22 -> 36
Q37: =DADOS!N23 -> 37
Q38: =DADOS!N24 -> 38
Q39: =DADOS!N25 -> 39
Q40: =DADOS!N26 -> 40 | IB40: =IF(IA40<>0,IA40,"") -> 
B50: ='1-MPN'!B66 -> FAPESP, MARÇO DE 2017
T65: Valores vigentes até 28/2/2010 | U65: Valores vigentes a partir de 1º/3/2010
T67: 424.8 | U67: 474
T68: 1248.6 | U68: 1392.9
T69: 1325.7 | U69: 1478.7
T70: 1840.5 | U70: 2053.2
T71: 2278.2 | U71: 2541.3
T72: 4508.1 | U72: 5028.9
T74: 268.2 | U74: 299.1
T75: 536.4 | U75: 598.5
T76: 750.9 | U76: 837.6
T77: 1898.4 | U77: 2117.7
T78: 3110.4 | U78: 3469.8
T79: 4508.1 | U79: 5028.9
T80: 429 | U80: 478.5
T81: 643.5 | U81: 717.9
T82: US$ 1.200,00 | U82: US$ 1.200,00
B83: PARA IMPRIMIR A INSTRUÇÃO ABAIXO, SELECIONE A ÁREA A SER IMPRESSA
B84: DIGITE "CTRL" P, E DEPOIS CLIQUE EM SELEÇÃO. | T84: 5122.8 | U84: 5714.4
T86: 193.2 | U86: 215.4
T87: 386.1 | U87: 430.8
B88: 9A- BOLSAS DE CAPACITAÇÃO TÉCNICA VINCULADAS A: | T88: 579.3 | U88: 646.2
T89: 772.2 | U89: 861.3
B90: AS CAIXAS DE SELEÇÃO ACIMA, DEVEM SER CLICADAS DEPENDENDO DO PROGRAMA A QUE AS BOLSAS TT ESTÃO VINCULADAS. | T90: 965.4 | U90: 1077
B91: SOMENTE É PERMITIDO A SELEÇÃO DE UMA DAS CAIXAS. | T91: 1544.4 | U91: 1722.9
B93: NOME DO INTERESSADO: | T93: 2475 | U93: 2760.9
T94: 3662.7 | U94: 4085.7
B95: PROCESSO: | H95: (PARA PEDIDOS INICIAIS, NÃO É NECESSÁRIO PREENCHER ESTE CAMPO, ELE DEVE SER PREENCHIDO EM CASOS DE RECONSIDERAÇÃO DO ORÇAMENTO PELA FAPESP. | T95: 5122.8 | U95: 5714.4
B97: TOTAL: | E97: =IF(SUM(K100:K105)=0,"",(SUM(K100:K105))) -> 200921.4 | H97: (CÉLULA DE TOTALIZAÇÃO AUTOMÁTICA) | T97: 424.8 | U97: 474
T98: 1248.6 | U98: 1392.9
B99: item | E99: modalidade | F99: quantidade | G99: duração (meses) | H99: carga horária semanal | I99: valor integral da bolsa | J99: valor da mensalidade | K99: custo total | L99: FAPESP | T99: 1840.5 | U99: 2053.2
B100: 1 | E100: TT-I | F100: 1 | G100: 6 | I100: =IF(E100=0,"",INDEX($O$16:$O$30,MATCH(E100,$N$16:$N$30,0))) -> 406.5 | J100: =IF(ISERROR(K100/G100/F100),"",(K100/G100/F100)) -> 406.5 | K100: =IF(E100=0,"",IF(E100="TT-I",F100*I100*G100,F100*I100*G100*(H100/40))) -> 2439 | T100: 4508.1 | U100: 5028.9 | IB100: =#REF! ->  | IC100: =IF(IB100<>0,IB100,"") -> 
B101: 2 | E101: TT-I | F101: 1 | G101: 12 | I101: 406.5 | J101: 406.5 | K101: 4878 | IB101: =#REF! ->  | IC101: =IF(IB101<>0,IB101,"") -> 
B102: 3 | E102: TT-II | F102: 2 | G102: 12 | H102: 16 | I102: 812.1 | J102: 324.84 | K102: 7796.16 | IB102: =#REF! ->  | IC102: =IF(IB102<>0,IB102,"") -> 
B103: 4 | E103: TT-III | F103: 1 | G103: 12 | H103: 40 | I103: 1136.4 | J103: 1136.4 | K103: 13636.8
B104: 5 | E104: TT-IV-A | F104: 2 | G104: 24 | H104: 16 | I104: 4705.2 | J104: 1882.08 | K104: 90339.84 | IB104: =#REF! ->  | IC104: =IF(IB104<>0,IB104,"") -> 
B105: 6 | E105: TT-V | F105: 1 | G105: 12 | H105: 40 | I105: 6819.3 | J105: 6819.3 | K105: 81831.6 | IB105: =#REF! ->  | IC105: =IF(IB105<>0,IB105,"") -> 
B107: Coluna (item) - as bolsas solicitadas devem ser numeradas sequencialmente.
B108: Coluna (modalidade) - Selecione a modalidade de bolsa TT, veja acima todas as opções disponíveis.
B109: Coluna (quantidade) - Digite a quantidade de bolsas (bolsistas) referente a modalidade solicitada.
B110: Coluna (duração (meses)) - Digite a duração da bolsa solicitada, se houver mais de um bolsista de uma mesma modalidade com duração
B111: diferente, deve ser preenchida outra linha nesta modalidade, conforme exemplo nos itens 1 e 2 acima.
B112: Coluna (carga horária semanal) - As bolsas de TT-I tem carga horária semanal de 15 horas, por isso quando é selecionada esta
B113: modalidade a caixa de seleção desta coluna fica com fundo preto (automático), para as outras bolsas, é possível selecionar de
B114: 16 a 40 horas semanais, veja abaixo os níveis de bolsas TT disponíveis.
B115: Coluna (valor integral da bolsa) - Esta coluna é automática de acordo com a modalidade de bolsa TT selecionada.
B116: Coluna (valor da mensalidade) - Esta coluna é automática e pode variar de acordo com a carga horária semanal selecionada para as | C116: Coluna (valor integral da bolsa) - Esta coluna é automática de acordo com a modalidade de bolsa TT selecionada.
B117: bolsa de TT-II, TT-III, TT-IV ou TT-V.
B118: Coluna (custo total) - Coluna de totalização automática.
B120: Níveis de Bolsas TT | G120: http://www.fapesp.br/materia/3098/capacitacao-tecnica/niveis-de-bolsas-tt.htm
B122: Os níveis de Bolsas TT são:
B123: i) Bolsa TT-1, para alunos de graduação, sem reprovações em seu histórico escolar e sem vínculo empregatício, com dedicação de 15 horas semanais às atividades de apoio ao projeto de pesquisa, sem que haja prejuízo em seu desempenho acadêmico;
B124: ii) Bolsa TT-2, para alunos do último ano ou egressos do nível médio técnico, sem reprovações em seu histórico escolar e sem vínculo empregatício, com dedicação de 16 a 40 horas semanais (o valor da Bolsa a ser paga será proporcional ao número de horas semanais) às atividades de apoio ao projeto de pesquisa;
B125: iii) Bolsa TT-3, para alunos graduados do nível superior, sem reprovações em seu histórico escolar e sem vínculo empregatício, com dedicação de 16 a 40 horas semanais (o valor da Bolsa a ser paga será proporcional ao número de horas semanais) às atividades de apoio ao projeto de pesquisa. O tempo de bolsa TT-3 será descontado no caso do interessado vir a usufruir de Bolsa de Mestrado ou Doutorado Direto.
B126: iv) Bolsa TT-4, para graduado, especialista em Tecnologia de Informação (TI), com dois anos de experiência após a graduação ou título de mestrado na área de TI, sem vínculo empregatício, com dedicação de 16 a 40 horas semanais (o valor da Bolsa a ser paga será proporcional ao número de horas semanais) às atividades de apoio ao projeto de pesquisa;
B127: v) Bolsa TT-4A, para graduado, especialista em TI com pelo menos quatro anos de experiência após a graduação, sem vínculo empregatício, com dedicação de 16 a 40 horas semanais (o valor da Bolsa a ser paga será proporcional ao número de horas semanais) às atividades de apoio ao projeto de pesquisa;
B128: vi) Bolsa TT-5, para graduado, especialista em TI com pelo menos cinco anos de experiência após a graduação ou título de doutorado, sem vínculo empregatício, com dedicação de 16 a 40 horas semanais (o valor da Bolsa a ser paga será proporcional ao número de horas semanais) às atividades de apoio ao projeto de pesquisa.

Sheet 9b-BOLSA PD - APR
B6: 9B- BOLSAS DE PÓS-DOUTORADO - AUXÍLIO À PESQUISA REGULAR
B8: NOME DO INTERESSADO: | FU8: SE(E(C15="";D15=0;E15=0);"";SE(C15="IC";$N$15*E15;SE(C15="PD";$N$17*E15;SE(E(C15="DD";E15<=12);$L$16*0,3*E15;SE(E(C15="DD";E15>12;E15<=24);($L$18*0,3*(E15-12)+($L$16*0,3*12));SE(E(C15="DD";E15>24;E15<=36);($L$19*0,3*(E15-24)+($L$18*0,3*12))+($L$16*0,3*12);SE(E(C15="DD";E15>36;E15<=48);($L$20*0,3*(E156)+($L$19*0,3*12))+($L$18*0,3*12)+($L$16*0,3*12))))))))
B10: PROCESSO: | G10: Chamada FAPESP-FCT 2017
B12: TOTAL: | C12: =IF(SUM(H15:H30)=0,"",(SUM(H15:H30))) -> 
B14: item | C14: modalidade | D14: quantidade | E14: duração (meses) | F14: valor da bolsa | G14: Reserva Técnica da bolsa | H14: custo total | I14: FAPESP | K14: MODALIDADE | L14: VALOR BOLSA | M14: RT ANUAL | N14: RT MENSAL | O14: %
F15: =IF(C15=0,"",INDEX($L$15:$L$20,MATCH(C15,$K$15:$K$20,0))) ->  | G15: =IF(C15="","",IF(C15="IC",$N$15*E15,IF(C15="PD",$N$17*E15,IF(AND(C15="DD",E15<=12),$L$16*0.3*E15, IF(AND(C15="DD",E15>12,E15<=24),($L$18*0.3*(E15-12)+($L$16*0.3*12)), IF(AND(C15="DD",E15>24,E15<=36),($L$19*0.3*(E15-24)+($L$18*0.3*12))+($L$16*0.3*12), IF(AND(C15="DD",E15>36,E15<=48),($L$20*0.3*(E15-36)+($L$19*0.3*12))+($L$18*0.3*12)+($L$16*0.3*12)))))))*D15) ->  | H15: =IF(ISERROR(D15*F15*E15),"",D15*F15*E15) ->  | K15: =DADOS!B16 -> IC | L15: =DADOS!C16 -> 643.2 | M15: =L15*12*O15 -> 771.84 | N15: =M15/12 -> 64.32 | O15: 0.1
K16: =DADOS!B17 -> DD | L16: =DADOS!C17 -> 1889.4 | M16: 6801.84 | N16: 566.82 | O16: 0.3
K17: =DADOS!B18 -> PD | L17: =DADOS!C18 -> 6819.3 | M17: 12274.74 | N17: 1022.895 | O17: 0.15
K18: =DADOS!B19 -> DD2 | L18: =DADOS!C19 -> 2005.5 | M18: 7219.8 | N18: 601.65 | O18: 0.3
K19: =DADOS!B20 -> DD3 | L19: =DADOS!C20 -> 2784.6 | M19: 10024.56 | N19: 835.38 | O19: 0.3
K20: =DADOS!B21 -> DD4 | L20: =DADOS!C21 -> 3446.4 | M20: 12407.04 | N20: 1033.92 | O20: 0.3
K23: TOTAL DA RESERVA TÉCNICA TEMÁTICO - ESTA ABA
K24: =SUM(G15:G30) -> 0
K29: TOTAL GERAL DA RESERVA TÉCNICA DA BOLSAS
K30: =K24+K27 -> 0
B31: ='9a-BOLSAS - TT'!B50 -> FAPESP, MARÇO DE 2017

Sheet CONSOLIDADA
H2: Chamada FAPESP-FCT 2017 | T2: ='1-MPN'!B7 -> AUXÍLIO À PESQUISA - REGULAR | W2: CÉLULA VARIÁVEL
T3: ='1-MPN'!R46 -> AUXÍLIO À PESQUISA - PROJETO TEMÁTICO | W3: CÉLULAS FIXAS | Y3: BC
H4: Taxa do dólar do Banco Central do dia: | J4: =NOW() -> 2017-03-09T13:38:45.470 | T4: ='1-MPN'!R47 -> AUXÍLIO À PESQUISA - JOVENS PESQUISADORES | Y4: =DADOS!K3 -> 1
T5: ='1-MPN'!R49 -> AUXÍLIO À PESQUISA - POLÍTICAS PÚBLICAS | Y5: 2
C6: IMPRESSÃO OBRIGATÓRIA | E6: PLANILHA DE TOTALIZAÇÃO DOS RECURSOS SOLICITADOS À FAPESP | F6: ="MODALIDADE: "&('1-MPN'!B7) -> MODALIDADE: AUXÍLIO À PESQUISA - REGULAR | T6: ='1-MPN'!R50 -> AUXÍLIO À PESQUISA - REGULAR | Y6: =DADOS!K5 -> 3
E7: ITENS SOLICITADOS | H7: Nacional | I7: Importado | Y7: =DADOS!K6 -> 4
E8: MATERIAL PERMANENTE | H8: ='1-MPN'!D15 ->  | I8: ='2-MPI'!D18 ->  | T8: BENEFÍCIOS COMPLEMENTARES | Y8: =DADOS!K7 -> 5
E9: MATERIAL DE CONSUMO | H9: ='3-MCN'!D12 ->  | I9: ='4-MCI'!D18 ->  | T9: 8000 | U9: OUTROS AUXÍLIOS | Y9: =DADOS!K8 -> 6
E10: SERVIÇOS DE TERCEIROS | H10: ='5-STB'!D12 ->  | I10: ='6-STE'!D18 ->  | T10: 12000 | U10: TEMATICO/JP | Y10: =DADOS!K9 -> 7
E11: DESPESAS COM DIÁRIAS NO PAÍS E NO EXTERIOR | H11: ='8-DIP-DIE'!D12 ->  | I11: ='8-DIP-DIE'!K12 ->  | Y11: =DADOS!K10 -> 8
E12: DESPESAS DE TRANSPORTE | H12: ='7-TRAN'!D13 ->  | Y12: =DADOS!K11 -> 9
E13: BOLSAS DE CAPACITAÇÃO TÉCNICA | H13: ='9a-BOLSAS - TT'!E13 ->  | Y13: =DADOS!K12 -> 10
E14: BOLSA PD - VINCULADAS AO PROJETO AUXÍLIO À PESQUISA REGULAR | H14: ='9b-BOLSA PD - APR'!C12 -> 
E15: RESERVA TÉCNICA DE IMPORTAÇÃO | I15: =IF(F6="MODALIDADE: CLIQUE AQUI E SELECIONE A MODALIDADE DO AUXÍLIO SOLICITADO","",SUM(I8:K10)*0.15) -> 0
E16: RESERVA TÉCNICA PARA INFRAESTRUTURA DIRETA DO PROJETO | H16: =IF(ISERROR(IF($S$6="MODALIDADE: CLIQUE AQUI E SELECIONE A MODALIDADE DO AUXÍLIO SOLICITADO",0,IF($S$6=$S$7,SUM($H$7:$H$11)*0.2,SUM($H$7:$H$11)*0.15))),0,IF($S$6="MODALIDADE: CLIQUE AQUI E SELECIONE A MODALIDADE DO AUXÍLIO SOLICITADO","",IF($S$6=$S$7,SUM($H$7:$H$11)*0.2,SUM($H$7:$H$11)*0.15))) -> 0 | I16: =IF(F6="MODALIDADE: CLIQUE AQUI E SELECIONE A MODALIDADE DO AUXÍLIO SOLICITADO","",IF(T2=T3,SUM(I8:K11)*0.2,SUM(I8:K11)*0.15)) -> 0
E17: RESERVA TÉCNICA DAS BOLSAS ACADÊMICAS SOLICITADAS | H17: =IF('9b-BOLSA PD - APR'!$K$30=0,"",'9b-BOLSA PD - APR'!$K$30) -> 
E18: =IF($F$6="MODALIDADE: CLIQUE AQUI E SELECIONE A MODALIDADE DO AUXÍLIO SOLICITADO","Selecione o tipo de Auxílio na aba 1-MPN, onde está escrito: Clique Aqui e Selecione a Modalidade do Auxílio Solicitado.",IF(T2=T3,"Benefícios Complementares para PROJETOS TEMÁTICOS indique ao lado a quantidade de Pesquisadores Principais e na sequência, a duração do auxílio solicitado.","Benefícios Complementares para: AUXÍLIO REGULAR, indique apenas a duração em anos.")) -> Benefícios Complementares para: AUXÍLIO REGULAR, indique apenas a duração em anos. | H18: =IF(T2=T3,SUM(T10*G18*F18),IF(T2=T4,SUM(T10*G18),SUM(T9*G18))) -> 0
E19: TOTAL DO PROCESSO | H19: =SUM(H8:H18) -> 0 | I19: =SUM(I8:K18) -> 0
E20: RESERVA TÉCNICA PARA INFRAESTRUTURA INSTITUCIONAL DE PESQUISA | H20: =IF(ISERROR(IF(F6="MODALIDADE: CLIQUE AQUI E SELECIONE A MODALIDADE DO AUXÍLIO SOLICITADO","",IF($T$2=$T$3,SUM($H$8:$H$12)*0.2,SUM($H$8:$H$12)*0.1))),"",IF(F6="MODALIDADE: G17CLIQUE AQUI E SELECIONE A MODALIDADE DO AUXÍLIO SOLICITADO","",IF($T$2=$T$3,SUM($H$8:$H$12)*0.2,SUM($H$8:$H$12)*0.1))) -> 0 | I20: =IF(ISERROR(IF(F6="MODALIDADE: CLIQUE AQUI E SELECIONE A MODALIDADE DO AUXÍLIO SOLICITADO","",IF($T$2=$T$3,SUM(I8:K11)*0.2,SUM($I$8:$K$11)*0.1))),"",IF(F6="MODALIDADE: CLIQUE AQUI E SELECIONE A MODALIDADE DO AUXÍLIO SOLICITADO","",IF($T$2=$T$3,SUM($I$8:$K$11)*0.2,SUM($I$8:$K$11)*0.1))) -> 0
E22: TOTAL COM CONVERSÃO DO DÓLAR PARA REAL | H22: =H19+H20 -> 0 | I22: =(I19+I20)*K4 -> 0
E23: TOTAL GERAL (GRAND TOTAL) | H23: =IF(H22+I22=0,"",H22+I22) -> 
E24: ='9b-BOLSA PD - APR'!B31 -> FAPESP, MARÇO DE 2017
C29: TABELA INFORMATIVA PARA OS CÁLCULOS (www.fapesp.br/rt)
C30: Reserva Técnica para infraestrutura Direta do Projeto | F30: MODALIDADE | L30: Reserva Técnica para Infraestrutura Institucional de Pesquisa
C31: Valor | E31: Desembolso | L31: Valor | T31: Desembolso
C32: 0.15 | E32: Na outorga | F32: Auxílio à Pesquisa – Regular | L32: 0.1 | T32: Anual consolidado
C33: 0.2 | E33: Na outorga | F33: Auxílio à Pesquisa – Temático | L33: 0.2 | T33: Anual consolidado
C34: 0.15 | E34: Na outorga | F34: Auxílio à Pesquisa – Jovem Pesquisador | L34: 0.1 | T34: Anual consolidado
C35: 0.15 | E35: Na outorga | F35: Auxílio à Pesquisa – Pesq. em Políticas Públicas | L35: 0.1 | T35: Anual consolidado
C36: 0.15 | E36: Na outorga | F36: Auxílio à Pesquisa – Pesquisa para Melhoria do Ensino Público | L36: 0.1 | T36: Anual consolidado

Sheet DADOS (hidden)
B2: BOLSAS | C2: A PARTIR DE 1º/4/2016 | D2: ATÉ | E2: ATÉ | F2: ATÉ | G2: ATÉ | H2: ATÉ | I2: ATÉ | K2: CALCULO BC | M2: HORAS SEMANAIS - BOLSAS TT | N2: 16 | P2: Bolsas no País | T2: BOLSAS | U2: Valores vigentes até 31/3/2016 | V2: partir de 1º/4/2016 | X2: TABELA DE VALORES
D3: 2016-03-31 | E3: 2013-04-01 | F3: 2012-04-01 | G3: 2011-04-01 | H3: 2011-03-31 | I3: 2010-02-28 | K3: 1 | N3: =N2+1 -> 17 | P3: Modalidade da Bolsa | R3: Valor | T3: IC | U3: 579.3 | V3: 643.2 | X3: WWW.FAPESP.BR/3162
B4: TT-I | C4: =V10 -> 406.5 | D4: 366 | E4: 351.9 | F4: 332.1 | G4: 317.4 | H4: 299.1 | I4: 268.2 | K4: 2 | N4: =N3+1 -> 18 | P4: Iniciação Científica | R4: 0.1 | T4: DD I | U4: 1701.9 | V4: 1889.4 | X4: PLANILHAS 4523
B5: TT-II | C5: =V11 -> 812.1 | D5: 731.4 | E5: 703.2 | F5: 663.9 | G5: 634.8 | H5: 598.5 | I5: 536.4 | K5: 3 | N5: 19 | P5: Mestrado | R5: 0.1 | T5: DD II | U5: 1806.6 | V5: 2005.5 | X5: WWW.FAPESP.BR/4523
B6: TT-III | C6: 1136.4 | D6: 1023.6 | E6: 984.3 | F6: 929.1 | G6: 888.3 | H6: 837.6 | I6: 750.9 | K6: 4 | N6: 20 | P6: Doutorado e Doutorado Direto | R6: 0.3 | T6: DD III | U6: 2508.6 | V6: 2784.6
B7: TT-IV | C7: 2871.9 | D7: 2587.2 | E7: 2488.2 | F7: 2349.3 | G7: 2246.1 | H7: 2117.7 | I7: 1898.4 | K7: 5 | N7: 21 | P7: Pós-Doutorado | R7: 0.15 | T7: DD IV | U7: 3104.7 | V7: 3446.4
B8: TT-IV-A | C8: 4705.2 | D8: 4238.7 | E8: 4076.7 | F8: 3849 | G8: 3679.8 | H8: 3469.8 | I8: 3110.4 | K8: 6 | N8: 22 | T8: PD | U8: 6143.4 | V8: 6819.3
B9: TT-V | C9: 6819.3 | D9: 6143.4 | E9: 5908.8 | F9: 5578.8 | G9: 5333.4 | H9: 5028.9 | I9: 4508.1 | K9: 7 | N9: 23 | U9: Valores vigentes até 31/3/2016 | V9: a partir de 1º/4/2016
K10: 8 | N10: 24 | T10: TT-I | U10: 366 | V10: 406.5
K11: 9 | N11: 25 | T11: TT-II | U11: 731.4 | V11: 812.1
K12: 10 | N12: 26 | T12: TT-III | U12: 1023.6 | V12: 1136.4
N13: 27 | T13: TT-IV | U13: 2587.2 | V13: 2871.9
B14: BOLSAS | C14: A PARTIR | D14: A PARTIR | E14: ATÉ | F14: A PARTIR | G14: ATÉ | H14: ATÉ | I14: ATÉ | J14: ATÉ | K14: ATÉ | N14: 28 | T14: TT-IV A | U14: 4238.7 | V14: 4705.2
C15: 1º/4/2016 | D15: 2014-04-02 | E15: 2013-04-01 | F15: 2012-04-01 | G15: 2011-04-01 | H15: 2011-03-31 | I15: 2010-02-28 | J15: 2009 | K15: 2003 | N15: 29 | T15: TT-5 | U15: 6143.4 | V15: 6819.3
B16: IC | C16: =V3 -> 643.2 | D16: 579.3 | E16: 557.1 | F16: 525.9 | G16: 502.8 | H16: 474 | I16: 424.8 | J16: 396 | K16: 330 | N16: 30
B17: DD | C17: =V4 -> 1889.4 | D17: 1701.9 | E17: 1636.8 | F17: R$1.545,30 | G17: 1477.2 | H17: 1392.9 | I17: 1248.6 | J17: 1164 | K17: 970 | N17: 31
B18: PD | C18: =V8 -> 6819.3 | D18: 6143.4 | E18: 5908.8 | F18: 5578.8 | G18: 5333.4 | H18: 5028.9 | I18: 4508.1 | J18: 4203.14 | K18: 2570 | N18: 32
B19: DD2 | C19: =V5 -> 2005.5 | D19: 1806.6 | E19: 1737.6 | F19: 1640.4 | G19: 1568.4 | H19: 1478.7 | I19: 1325.7 | J19: 1236 | K19: 1030 | N19: 33
B20: DD3 | C20: =V6 -> 2784.6 | D20: 2508.6 | E20: 2412.6 | F20: 2277.9 | G20: 2177.701 | H20: 2053.2 | I20: 1840.5 | J20: 1716 | K20: 1430 | N20: 34
B21: DD4 | C21: =V7 -> 3446.4 | D21: 3104.7 | E21: 2985.9 | F21: 2819.1 | G21: 2695.2 | H21: 2541.3 | I21: 2278.2 | J21: 2124 | K21: 1770 | N21: 35
N22: 36
N23: 37
N24: 38
N25: 39
N26: 40
